fUST/lending_fUST_20250206
["ID","MTS","AMOUNT","RATE_DAILY","PERIOD"]
[351825037,1738803056440,-500.0,0.00013973,2]
[351825038,1738803056449,-500.0,0.00013973,2]
[351825039,1738803056458,-500.0,0.00013973,2]
[351825040,1738803056468,-500.0,0.00013973,2]
[351825041,1738803056477,-500.0,0.00013973,2]
[351825042,1738803056487,-400.0,0.00013973,2]
[351825043,1738803056496,-150.0,0.00013999,2]
[351825044,1738803056506,-1974.0,0.00013999,2]
[351825045,1738803056515,-537.0,0.00013999,2]
[351825046,1738803056524,-2297.0,0.00013999,2]
[351825047,1738803056534,-150.0,0.00013999,2]
[351825048,1738803056544,-396.0,0.00013999,2]
[351825049,1738803056554,-150.0,0.00013999,2]
[351825050,1738803056563,-152.84,0.00013999,2]
[351825051,1738803056574,-160.0,0.00014055,5]
[351825052,1738803056587,-168.27396884,0.00014055,5]
[351825053,1738803056596,-151.0,0.000141,2]
[351825054,1738803056606,-151.0,0.000141,2]
[351825055,1738803056616,-622.0,0.000141,2]
[351825056,1738803056627,-151.98623375,0.00014108,2]
[351825057,1738803056637,-500.0,0.00014109,2]
[351825058,1738803056647,-500.0,0.00014109,2]
[351825059,1738803056658,-500.0,0.00014109,2]
[351825060,1738803056668,-245.40381372,0.00014109,2]
[351825061,1738803056678,-869.73,0.00014109,2]
[351825062,1738803056688,-500.0,0.00014109,2]
[351825063,1738803056698,-500.0,0.00014109,2]
[351825064,1738803056707,-532.14,0.00014109,2]
[351825065,1738803056717,-500.0,0.00014109,2]
[351825066,1738803056727,-500.0,0.00014109,2]
[351825067,1738803056737,-459.95489768,0.00014109,2]
[351825068,1738803056748,-500.0,0.00014109,2]
[351825069,1738803056758,-541.9,0.00014109,2]
[351825070,1738803056768,-500.0,0.00014109,2]
[351825071,1738803056778,-500.0,0.00014109,2]
[351825072,1738803056787,-500.0,0.00014109,2]
[351825073,1738803056797,-500.0,0.00014109,2]
[351825074,1738803056807,-500.0,0.00014109,2]
[351825075,1738803056816,-500.0,0.00014109,2]
[351825076,1738803056826,-500.0,0.00014109,2]
[351825077,1738803056835,-500.0,0.00014109,2]
[351825078,1738803056845,-500.0,0.00014109,2]
[351825079,1738803056855,-500.0,0.00014109,2]
[351825080,1738803056864,-1172.11,0.00014109,2]
[351825081,1738803056874,-666.06,0.00014109,2]
[351825082,1738803056884,-500.0,0.00014109,2]
[351825083,1738803056894,-500.0,0.00014109,2]
[351825084,1738803056904,-654.9,0.00014109,2]
[351825085,1738803056914,-500.0,0.00014109,2]
[351825086,1738803056924,-500.0,0.00014109,2]
[351825087,1738803056933,-500.0,0.00014109,2]
[351825088,1738803056942,-500.0,0.00014109,2]
[351825089,1738803056952,-500.0,0.00014109,2]
[351825090,1738803056961,-500.0,0.00014109,2]
[351825091,1738803056971,-500.0,0.00014109,2]
[351825092,1738803056980,-500.0,0.00014109,2]
[351825093,1738803056990,-866.1,0.00014109,2]
[351825094,1738803056999,-224.06990203,0.00014109,2]
[351825095,1738803057008,-914.03,0.00014109,2]
[351825096,1738803057018,-644.59,0.00014109,2]
[351825097,1738803057027,-500.0,0.00014109,2]
[351825098,1738803057037,-350.0,0.00014109,2]
[351825099,1738803057047,-582.95,0.00014109,2]
[351825100,1738803057056,-539.55,0.00014109,2]
[351825101,1738803057067,-500.0,0.00014109,2]
[351825102,1738803057076,-500.0,0.00014109,2]
[351825103,1738803057086,-284.97468103,0.00014109,2]
[351825104,1738803057095,-500.0,0.00014109,2]
[351825105,1738803057105,-500.0,0.00014109,2]
[351825106,1738803057114,-168.18522713,0.00014109,2]
[351825107,1738803057124,-724.25,0.00014109,2]
[351825108,1738803057133,-500.0,0.00014109,2]
[351825109,1738803057144,-500.0,0.00014109,2]
[351825110,1738803057153,-500.0,0.00014109,2]
[351825111,1738803057162,-500.0,0.00014109,2]
[351825112,1738803057172,-1476.75,0.00014109,2]
[351825113,1738803057181,-500.0,0.00014109,2]
[351825114,1738803057190,-1000.0,0.00014109,2]
[351825115,1738803057200,-500.0,0.00014109,2]
[351825116,1738803057209,-642.4,0.00014109,2]
[351825117,1738803057218,-921.33,0.00014109,2]
[351825118,1738803057228,-500.0,0.00014109,2]
[351825119,1738803057238,-500.0,0.00014109,2]
[351825120,1738803057247,-541.62,0.00014109,2]
[351825121,1738803057256,-1177.62,0.00014109,2]
[351825122,1738803057265,-1506.78,0.00014109,2]
[351825123,1738803057275,-151.0,0.00014109,2]
[351825124,1738803057284,-151.0,0.00014109,2]
[351825125,1738803057294,-500.0,0.00014109,2]
[351825126,1738803057303,-1246.23,0.00014109,2]
[351825127,1738803057313,-755.61,0.00014109,2]
[351825128,1738803057322,-500.0,0.00014109,2]
[351825129,1738803057331,-500.0,0.00014109,2]
[351825130,1738803057341,-500.0,0.00014109,2]
[351825131,1738803057350,-567.6,0.00014109,2]
[351825132,1738803057360,-500.0,0.00014109,2]
[351825133,1738803057370,-151.0,0.00014109,2]
[351825134,1738803057380,-151.0,0.00014109,2]
[351825135,1738803057390,-500.0,0.00014109,2]
[351825136,1738803057400,-151.0,0.00014109,2]
[351825137,1738803057410,-151.0,0.00014109,2]
[351825138,1738803057420,-707.38,0.00014109,2]
[351825139,1738803057430,-151.0,0.00014109,2]
[351825140,1738803057439,-151.0,0.00014109,2]
[351825141,1738803057449,-587.19,0.00014109,2]
[351825142,1738803057459,-500.0,0.00014109,2]
[351825143,1738803057468,-500.0,0.00014109,2]
[351825144,1738803057479,-849.94,0.00014109,2]
[351825145,1738803057489,-1075.97,0.00014109,2]
[351825146,1738803057499,-678.8,0.00014109,2]
[351825147,1738803057509,-500.0,0.00014109,2]
[351825148,1738803057519,-500.0,0.00014109,2]
[351825149,1738803057529,-910.4,0.00014109,2]
[351825150,1738803057539,-1032.19,0.00014109,2]
[351825151,1738803057548,-2495.67,0.00014109,2]
[351825152,1738803057558,-500.0,0.00014109,2]
[351825153,1738803057567,-500.0,0.00014109,2]
[351825154,1738803057580,-500.0,0.00014109,2]
[351825155,1738803057590,-1635.51,0.00014109,2]
[351825156,1738803057599,-500.0,0.00014109,2]
[351825157,1738803057609,-500.0,0.00014109,2]
[351825158,1738803057620,-151.0,0.00014109,2]
[351825159,1738803057629,-216.403969,0.00014109,2]
[351825160,1738803057639,-620.92,0.00014109,2]
[351825161,1738803057649,-2605.45,0.00014109,2]
[351825162,1738803057662,-586.49,0.00014109,2]
[351825163,1738803057673,-151.0,0.00014109,2]
[351825164,1738803057682,-281.210192,0.00014109,2]
[351825165,1738803057692,-500.0,0.00014109,2]
[351825166,1738803057701,-500.0,0.00014109,2]
[351825167,1738803057711,-500.0,0.00014109,2]
[351825168,1738803057721,-206.08265609,0.00014109,2]
[351825169,1738803057731,-500.0,0.00014109,2]
[351825170,1738803057740,-500.0,0.00014109,2]
[351825171,1738803057751,-530.55,0.00014109,2]
[351825172,1738803057761,-500.0,0.00014109,2]
[351825173,1738803057771,-500.0,0.00014109,2]
[351825174,1738803057782,-258.61389216,0.00014109,2]
[351825175,1738803057791,-500.0,0.00014109,2]
[351825176,1738803057802,-763.57,0.00014109,2]
[351825177,1738803057812,-1251.54,0.00014109,2]
[351825178,1738803057821,-1138.0,0.00014109,2]
[351825179,1738803057831,-640.2,0.00014109,2]
[351825180,1738803057841,-1170.47,0.00014109,2]
[351825181,1738803057851,-1083.46,0.00014109,2]
[351825182,1738803057862,-629.32,0.00014109,2]
[351825183,1738803057872,-738.14,0.00014109,2]
[351825184,1738803057882,-607.21,0.00014109,2]
[351825185,1738803057902,-500.0,0.00014109,2]
[351825186,1738803057913,-151.0,0.00014109,2]
[351825187,1738803057925,-636.81,0.00014109,2]
[351825188,1738803057935,-151.0,0.00014109,2]
[351825189,1738803057948,-957.88,0.00014109,2]
[351825190,1738803057958,-500.0,0.00014109,2]
[351825191,1738803057969,-3269.94,0.00014109,2]
[351825192,1738803057979,-500.0,0.00014109,2]
[351825193,1738803057989,-779.77,0.00014109,2]
[351825194,1738803057999,-500.0,0.00014109,2]
[351825195,1738803058009,-500.0,0.00014109,2]
[351825196,1738803058019,-534.68,0.00014109,2]
[351825197,1738803058029,-1654.12,0.00014109,2]
[351825198,1738803058039,-500.0,0.00014109,2]
[351825199,1738803058050,-704.97,0.00014109,2]
[351825200,1738803058060,-500.0,0.00014109,2]
[351825201,1738803058070,-809.69,0.00014109,2]
[351825202,1738803058080,-701.54,0.00014109,2]
[351825203,1738803058090,-1290.11,0.00014109,2]
[351825204,1738803058099,-1344.92,0.00014109,2]
[351825205,1738803058109,-505.64,0.00014109,2]
[351825206,1738803058118,-500.0,0.00014109,2]
[351825207,1738803058128,-500.0,0.00014109,2]
[351825208,1738803058141,-500.0,0.00014109,2]
[351825209,1738803058150,-612.19,0.00014109,2]
[351825210,1738803058160,-1239.7,0.00014109,2]
[351825211,1738803058169,-649.83,0.00014109,2]
[351825212,1738803058179,-598.19,0.00014109,2]
[351825213,1738803058189,-500.0,0.00014109,2]
[351825214,1738803058199,-500.0,0.00014109,2]
[351825215,1738803058208,-432.178419,0.00014109,2]
[351825216,1738803058218,-432.178419,0.00014109,2]
[351825217,1738803058227,-500.0,0.00014109,2]
[351825218,1738803058237,-432.178419,0.00014109,2]
[351825219,1738803058247,-432.178419,0.00014109,2]
[351825220,1738803058257,-500.0,0.00014109,2]
[351825221,1738803058267,-500.0,0.00014109,2]
[351825222,1738803058277,-500.0,0.00014109,2]
[351825223,1738803058287,-151.0,0.00014109,2]
[351825224,1738803058297,-500.0,0.00014109,2]
[351825225,1738803058307,-151.0,0.00014109,2]
[351825226,1738803058317,-151.0,0.00014109,2]
[351825227,1738803058326,-151.0,0.00014109,2]
[351825228,1738803058336,-229.884813,0.00014109,2]
[351825229,1738803058345,-229.884813,0.00014109,2]
[351825230,1738803058355,-747.81,0.00014109,2]
[351825231,1738803058365,-229.884813,0.00014109,2]
[351825232,1738803058374,-229.884813,0.00014109,2]
[351825233,1738803058384,-501.16,0.00014109,2]
[351825234,1738803058400,-500.0,0.00014109,2]
[351825235,1738803058409,-500.0,0.00014109,2]
[351825236,1738803058419,-816.87,0.00014109,2]
[351825237,1738803058429,-500.0,0.00014109,2]
[351825238,1738803058439,-657.56,0.00014109,2]
[351825239,1738803058449,-500.0,0.00014109,2]
[351825240,1738803058459,-2388.93,0.00014109,2]
[351825241,1738803058469,-500.0,0.00014109,2]
[351825242,1738803058478,-500.0,0.00014109,2]
[351825243,1738803058489,-809.49,0.00014109,2]
[351825244,1738803058499,-151.0,0.00014109,2]
[351825245,1738803058508,-151.0,0.00014109,2]
[351825246,1738803058645,-510.12,0.00014109,2]
[351825247,1738803058660,-2624.09,0.00014109,2]
[351825248,1738803058670,-500.0,0.00014109,2]
[351825249,1738803058681,-919.46,0.00014109,2]
[351825250,1738803058690,-7801.92,0.00014109,2]
[351825251,1738803058700,-500.0,0.00014109,2]
[351825252,1738803058710,-634.26,0.00014109,2]
[351825253,1738803058720,-712.74,0.00014109,2]
[351825254,1738803058729,-500.0,0.00014109,2]
[351825255,1738803058739,-1131.14,0.00014109,2]
[351825256,1738803058749,-500.0,0.00014109,2]
[351825257,1738803058759,-500.0,0.00014109,2]
[351825258,1738803058768,-510.3813795,0.00014109,2]
[351825259,1738803058778,-500.0,0.00014109,2]
[351825260,1738803058788,-503.82382776,0.00014109,2]
[351825261,1738803058798,-500.0,0.00014109,2]
[351825262,1738803058808,-1005.72,0.00014109,2]
[351825263,1738803058817,-500.0,0.00014109,2]
[351825264,1738803058826,-32874.51,0.00014109,2]
[351825265,1738803058835,-1360.27,0.00014109,2]
[351825266,1738803058845,-606.05,0.00014109,2]
[351825267,1738803058855,-4867.75,0.00014109,2]
[351825268,1738803058865,-769.1,0.00014109,2]
[351825269,1738803058874,-4166.49,0.00014109,2]
[351825270,1738803058883,-1268.44,0.00014109,2]
[351825271,1738803058895,-500.0,0.00014109,2]
[351825272,1738803058905,-500.0,0.00014109,2]
[351825273,1738803058914,-1197.5294162,0.00014109,2]
[351825276,1738803210754,160.0,0.00017295,120]
[351825277,1738803270785,160.0,0.00018283,120]
[351825278,1738803390768,160.0,0.00017832,120]
[351825279,1738803570793,160.0,0.00017798,120]
[351825280,1738803616317,10000.0,0.000192,120]
[351825281,1738803630757,160.0,0.00018931,120]
[351825282,1738803932252,160.0,0.00019227,120]
[351825283,1738803990748,160.0,0.00019014,120]
[351825284,1738804171411,160.0,0.00018529,120]
[351825285,1738804230771,160.0,0.0001805,120]
[351825421,1738804236834,-299.122,0.00013424,2]
[351825422,1738804236844,-916.4167898,0.00013598,2]
[351825463,1738804238677,-389.52652136,0.00013598,2]
[351825465,1738804238687,-173.40154236,0.00013598,2]
[351825467,1738804238696,-500.0,0.00013673,2]
[351825469,1738804238706,-300.0,0.00013696,2]
[351825470,1738804238716,-11350.12176953,0.00013696,2]
[351825473,1738804238726,-168.00528406,0.00013697,2]
[351825474,1738804238735,-500.0,0.00013697,2]
[351825476,1738804238746,-160.69891658,0.00013697,2]
[351825479,1738804238756,-500.0,0.00013697,2]
[351825480,1738804238765,-309.94335099,0.00013697,2]
[351825482,1738804238775,-528.0015526,0.00013697,2]
[351825484,1738804238785,-516.20674703,0.00013697,2]
[351825486,1738804238794,-214.83298063,0.00013697,2]
[351825488,1738804238803,-584.90785736,0.00013698,2]
[351825491,1738804238812,-187.48596558,0.00013698,2]
[351825494,1738804238822,-273.16598532,0.00013698,2]
[351825497,1738804238831,-500.0,0.00013698,2]
[351825499,1738804238840,-500.0,0.00013698,2]
[351825501,1738804238849,-500.0,0.00013698,2]
[351825503,1738804238859,-1000.0,0.00013698,2]
[351825505,1738804238868,-500.0,0.00013698,2]
[351825507,1738804238878,-500.0,0.00013698,2]
[351825509,1738804238887,-309.48709395,0.00013698,2]
[351825511,1738804238897,-500.0,0.00013698,2]
[351825513,1738804238909,-882.94,0.00013698,2]
[351825515,1738804238918,-500.0,0.00013698,2]
[351825517,1738804238928,-1211.89,0.00013698,2]
[351825519,1738804238937,-185.18099463,0.00013698,2]
[351825521,1738804238947,-489.41774235,0.00013698,2]
[351825523,1738804238957,-636.09,0.00013698,2]
[351825525,1738804238971,-585.62,0.00013698,2]
[351825527,1738804238981,-500.0,0.00013698,2]
[351825530,1738804238990,-500.0,0.00013698,2]
[351825531,1738804239000,-500.0,0.00013698,2]
[351825533,1738804239011,-500.0,0.00013698,2]
[351825536,1738804239021,-500.0,0.00013698,2]
[351825537,1738804239031,-740.41,0.00013698,2]
[351825539,1738804239042,-198.34818467,0.00013698,2]
[351825541,1738804239052,-500.0,0.00013698,2]
[351825543,1738804239062,-500.0,0.00013698,2]
[351825546,1738804239073,-500.0,0.00013698,2]
[351825548,1738804239083,-500.0,0.00013698,2]
[351825550,1738804239092,-500.0,0.00013698,2]
[351825552,1738804239102,-500.0,0.00013698,2]
[351825554,1738804239112,-500.0,0.00013698,2]
[351825556,1738804239121,-500.0,0.00013698,2]
[351825558,1738804239131,-500.0,0.00013698,2]
[351825560,1738804239140,-500.0,0.00013698,2]
[351825562,1738804239151,-500.0,0.00013698,2]
[351825564,1738804239161,-500.0,0.00013698,2]
[351825566,1738804239170,-500.0,0.00013698,2]
[351825568,1738804239180,-528.8340969,0.00013698,2]
[351825570,1738804239189,-500.0,0.00013698,2]
[351825572,1738804239198,-500.0,0.00013698,2]
[351825574,1738804239207,-609.5,0.00013698,2]
[351825576,1738804239218,-569.67,0.00013698,2]
[351825578,1738804239226,-500.0,0.00013698,2]
[351825580,1738804239236,-500.0,0.00013698,2]
[351825582,1738804239246,-500.0,0.00013698,2]
[351825584,1738804239256,-502.90259631,0.00013698,2]
[351825586,1738804239265,-1156.26,0.00013698,2]
[351825587,1738804239275,-160.82587669,0.00013698,2]
[351825588,1738804239285,-500.0,0.00013698,2]
[351825589,1738804239294,-604.57,0.00013698,2]
[351825590,1738804239304,-1000.0,0.00013698,2]
[351825591,1738804239313,-500.0,0.00013698,2]
[351825592,1738804239323,-500.0,0.00013698,2]
[351825593,1738804239332,-742.22,0.00013698,2]
[351825594,1738804239342,-500.0,0.00013698,2]
[351825595,1738804239352,-500.0,0.00013698,2]
[351825596,1738804239362,-500.0,0.00013698,2]
[351825597,1738804239371,-500.0,0.00013698,2]
[351825598,1738804239381,-500.0,0.00013698,2]
[351825599,1738804239391,-500.0,0.00013698,2]
[351825601,1738804239402,-500.0,0.00013698,2]
[351825603,1738804239411,-500.0,0.00013698,2]
[351825605,1738804239422,-500.0,0.00013698,2]
[351825607,1738804239431,-500.0,0.00013698,2]
[351825609,1738804239441,-585.91,0.00013698,2]
[351825611,1738804239450,-501.20315006,0.00013698,2]
[351825613,1738804239460,-500.0,0.00013698,2]
[351825615,1738804239469,-500.0,0.00013698,2]
[351825617,1738804239479,-500.0,0.00013698,2]
[351825619,1738804239488,-500.0,0.00013698,2]
[351825621,1738804239498,-500.0,0.00013698,2]
[351825623,1738804239507,-500.0,0.00013698,2]
[351825626,1738804239517,-500.0,0.00013698,2]
[351825627,1738804239526,-500.0,0.00013698,2]
[351825629,1738804239535,-500.0,0.00013698,2]
[351825631,1738804239544,-1415.22,0.00013698,2]
[351825633,1738804239554,-500.0,0.00013698,2]
[351825635,1738804239564,-500.0,0.00013698,2]
[351825637,1738804239573,-509.89494852,0.00013698,2]
[351825639,1738804239582,-500.0,0.00013698,2]
[351825641,1738804239592,-384.74465981,0.00013698,2]
[351825643,1738804239601,-500.0,0.00013698,2]
[351825645,1738804239610,-1443.99,0.00013698,2]
[351825647,1738804239619,-500.0,0.00013698,2]
[351825649,1738804239629,-500.0,0.00013698,2]
[351825651,1738804239638,-500.0,0.00013698,2]
[351825653,1738804239648,-500.0,0.00013698,2]
[351825655,1738804239658,-500.0,0.00013698,2]
[351825657,1738804239667,-500.0,0.00013698,2]
[351825659,1738804239677,-500.0,0.00013698,2]
[351825661,1738804239686,-683.32,0.00013698,2]
[351825663,1738804239695,-500.0,0.00013698,2]
[351825665,1738804239704,-501.97482005,0.00013698,2]
[351825667,1738804239714,-500.0,0.00013698,2]
[351825669,1738804239724,-500.0,0.00013698,2]
[351825671,1738804239734,-500.0,0.00013698,2]
[351825673,1738804239744,-500.0,0.00013698,2]
[351825675,1738804239753,-500.0,0.00013698,2]
[351825677,1738804239762,-560.72,0.00013698,2]
[351825679,1738804239771,-500.0,0.00013698,2]
[351825681,1738804239781,-500.0,0.00013698,2]
[351825683,1738804239790,-500.0,0.00013698,2]
[351825685,1738804239799,-500.0,0.00013698,2]
[351825687,1738804239809,-501.51698432,0.00013698,2]
[351825689,1738804239818,-500.0,0.00013698,2]
[351825691,1738804239828,-500.0,0.00013698,2]
[351825693,1738804239838,-765.79,0.00013698,2]
[351825695,1738804239847,-511.64698148,0.00013698,2]
[351825697,1738804239857,-500.0,0.00013698,2]
[351825699,1738804239867,-978.54,0.00013698,2]
[351825701,1738804239877,-226.42980137,0.00013698,2]
[351825703,1738804239887,-662.7,0.00013698,2]
[351825705,1738804239897,-500.0,0.00013698,2]
[351825707,1738804239907,-230.83926229,0.00013698,2]
[351825709,1738804239916,-522.87038383,0.00013698,2]
[351825711,1738804239926,-500.0,0.00013698,2]
[351825713,1738804239936,-500.0,0.00013698,2]
[351825715,1738804239945,-500.0,0.00013698,2]
[351825717,1738804239955,-393.0,0.00013698,2]
[351825719,1738804239969,-500.0,0.00013698,2]
[351825721,1738804239979,-500.0,0.00013698,2]
[351825723,1738804239989,-500.0,0.00013698,2]
[351825725,1738804239999,-500.0,0.00013698,2]
[351825727,1738804240011,-987.84,0.00013698,2]
[351825729,1738804240020,-500.0,0.00013698,2]
[351825731,1738804240030,-281.53772769,0.00013698,2]
[351825733,1738804240041,-500.0,0.00013698,2]
[351825735,1738804240052,-500.0,0.00013698,2]
[351825737,1738804240062,-1257.98,0.00013698,2]
[351825739,1738804240072,-500.0,0.00013698,2]
[351825741,1738804240083,-801.65,0.00013698,2]
[351825743,1738804240092,-500.0,0.00013698,2]
[351825746,1738804240103,-500.0,0.00013698,2]
[351825748,1738804240113,-505.66110072,0.00013698,2]
[351825750,1738804240124,-500.0,0.00013698,2]
[351825752,1738804240134,-500.0,0.00013698,2]
[351825754,1738804240144,-500.0,0.00013698,2]
[351825756,1738804240157,-500.0,0.00013698,2]
[351825758,1738804240166,-500.0,0.00013698,2]
[351825760,1738804240176,-500.0,0.00013698,2]
[351825762,1738804240185,-582.67,0.00013698,2]
[351825764,1738804240195,-500.0,0.00013698,2]
[351825766,1738804240205,-500.0,0.00013698,2]
[351825768,1738804240215,-705.0,0.00013698,2]
[351825770,1738804240225,-500.0,0.00013698,2]
[351825772,1738804240235,-564.2755885,0.00013698,2]
[351825774,1738804240244,-500.0,0.00013698,2]
[351825776,1738804240254,-500.0,0.00013698,2]
[351825778,1738804240263,-500.0,0.00013698,2]
[351825779,1738804240273,-1027.98,0.00013698,2]
[351825782,1738804240283,-2372.64,0.00013698,2]
[351825784,1738804240293,-278.84389108,0.00013698,2]
[351825785,1738804240303,-500.0,0.00013698,2]
[351825788,1738804240313,-500.0,0.00013698,2]
[351825790,1738804240322,-500.0,0.00013698,2]
[351825792,1738804240332,-500.0,0.00013698,2]
[351825794,1738804240341,-500.0,0.00013698,2]
[351825796,1738804240350,-501.73,0.00013698,2]
[351825798,1738804240360,-500.0,0.00013698,2]
[351825800,1738804240369,-555.55,0.00013698,2]
[351825802,1738804240378,-500.0,0.00013698,2]
[351825804,1738804240387,-500.0,0.00013698,2]
[351825806,1738804240397,-505.1433936,0.00013698,2]
[351825808,1738804240407,-500.0,0.00013698,2]
[351825809,1738804240417,-2472.94,0.00013698,2]
[351825812,1738804240426,-352.54752496,0.00013698,2]
[351825813,1738804240435,-500.0,0.00013698,2]
[351825815,1738804240445,-500.0,0.00013698,2]
[351825818,1738804240455,-876.2,0.00013698,2]
[351825820,1738804240465,-500.0,0.00013698,2]
[351825822,1738804240475,-500.0,0.00013698,2]
[351825824,1738804240484,-500.0,0.00013698,2]
[351825826,1738804240493,-500.0,0.00013698,2]
[351825828,1738804240503,-504.31827618,0.00013698,2]
[351825829,1738804240512,-500.0,0.00013698,2]
[351825831,1738804240522,-500.0,0.00013698,2]
[351825833,1738804240531,-500.0,0.00013698,2]
[351825835,1738804240541,-500.0,0.00013698,2]
[351825837,1738804240550,-500.0,0.00013698,2]
[351825839,1738804240560,-500.0,0.00013698,2]
[351825841,1738804240570,-500.0,0.00013698,2]
[351825843,1738804240579,-500.0,0.00013698,2]
[351825845,1738804240589,-246.67133762,0.00013698,2]
[351825847,1738804240598,-500.0,0.00013698,2]
[351825849,1738804240608,-500.0,0.00013698,2]
[351825851,1738804240618,-1557.09,0.00013698,2]
[351825853,1738804240627,-500.0,0.00013698,2]
[351825855,1738804240637,-1209.74,0.00013698,2]
[351825857,1738804240647,-500.0,0.00013698,2]
[351825859,1738804240657,-500.0,0.00013698,2]
[351825862,1738804240667,-500.0,0.00013698,2]
[351825881,1738804240846,-500.0,0.00013698,2]
[351825883,1738804240859,-741.61,0.00013698,2]
[351825886,1738804240870,-537.61,0.00013698,2]
[351825888,1738804240879,-500.0,0.00013698,2]
[351825890,1738804240889,-500.0,0.00013698,2]
[351825892,1738804240898,-519.1702499,0.00013698,2]
[351825894,1738804240908,-379.45244797,0.00013698,2]
[351825896,1738804240917,-1055.67,0.00013698,2]
[351825898,1738804240927,-500.0,0.00013698,2]
[351825901,1738804240936,-500.0,0.00013698,2]
[351825904,1738804240945,-500.0,0.00013698,2]
[351825908,1738804240954,-500.0,0.00013698,2]
[351825910,1738804240967,-500.0,0.00013698,2]
[351825911,1738804240977,-500.0,0.00013698,2]
[351825914,1738804240986,-500.0,0.00013698,2]
[351825916,1738804240995,-500.0,0.00013698,2]
[351825918,1738804241005,-500.0,0.00013698,2]
[351825919,1738804241014,-654.27,0.00013698,2]
[351825922,1738804241024,-500.0,0.00013698,2]
[351825924,1738804241033,-500.0,0.00013698,2]
[351825926,1738804241044,-557.69,0.00013698,2]
[351825927,1738804241053,-500.0,0.00013698,2]
[351825929,1738804241063,-350.33110555,0.00013698,2]
[351825932,1738804241073,-500.0,0.00013698,2]
[351825933,1738804241083,-500.0,0.00013698,2]
[351825936,1738804241092,-500.0,0.00013698,2]
[351825938,1738804241102,-940.56,0.00013698,2]
[351825940,1738804241112,-500.0,0.00013698,2]
[351825942,1738804241122,-500.0,0.00013698,2]
[351825944,1738804241133,-500.0,0.00013698,2]
[351825946,1738804241143,-690.72,0.00013698,2]
[351825948,1738804241153,-500.0,0.00013698,2]
[351825950,1738804241162,-500.0,0.00013698,2]
[351825952,1738804241172,-1105.67,0.00013698,2]
[351825954,1738804241182,-1344.02,0.00013698,2]
[351825956,1738804241191,-500.0,0.00013698,2]
[351825958,1738804241201,-500.0,0.00013698,2]
[351825960,1738804241210,-500.0,0.00013698,2]
[351825962,1738804241219,-500.0,0.00013698,2]
[351825964,1738804241229,-500.0,0.00013698,2]
[351825966,1738804241239,-500.0,0.00013698,2]
[351825968,1738804241249,-500.0,0.00013698,2]
[351825970,1738804241259,-512.77007859,0.00013698,2]
[351825972,1738804241268,-688.26,0.00013698,2]
[351825974,1738804241278,-500.0,0.00013698,2]
[351825976,1738804241287,-3137.4,0.00013698,2]